[Event "Live Chess"]
[Site "Chess.com"]
[Date "2023.05.20"]
[Round "-"]
[White "Ayursworld"]
[Black "TheSmoulderingMaster"]
[Result "1-0"]
[WhiteElo "1378"]
[BlackElo "1728"]
[TimeControl "300"]
[EndTime "11:56:19 PDT"]
[Termination "Ayursworld won by checkmate"]

1. e4 {[%clk 0:04:59.1]} 1... c5 {[%clk 0:04:57.9]} 2. Nf3 {[%clk 0:04:55.7]}
2... d6 {[%clk 0:04:57.1]} 3. Bb5+ {[%clk 0:04:53.4]} 3... Nd7 {[%clk
0:04:55.2]} 4. Bxd7+ {[%clk 0:04:51.7]} 4... Bxd7 {[%clk 0:04:54.3]} 5. c4
{[%clk 0:04:49.9]} 5... Bc6 {[%clk 0:04:52.7]} 6. Nc3 {[%clk 0:04:48.2]} 6...
Nf6 {[%clk 0:04:52]} 7. d3 {[%clk 0:04:47.1]} 7... g6 {[%clk 0:04:51.3]} 8. Bg5
{[%clk 0:04:45.6]} 8... Bg7 {[%clk 0:04:50.5]} 9. O-O {[%clk 0:04:42]} 9... O-O
{[%clk 0:04:49.7]} 10. Qd2 {[%clk 0:04:37.4]} 10... a6 {[%clk 0:04:49]} 11. Bh6
{[%clk 0:04:34.3]} 11... Rb8 {[%clk 0:04:46.1]} 12. Bxg7 {[%clk 0:04:32.7]}
12... Kxg7 {[%clk 0:04:46]} 13. a4 {[%clk 0:04:13.3]} 13... b5 {[%clk
0:04:40.9]} 14. cxb5 {[%clk 0:04:11.4]} 14... axb5 {[%clk 0:04:40.3]} 15. axb5
{[%clk 0:04:10.3]} 15... Bxb5 {[%clk 0:04:39.8]} 16. Nxb5 {[%clk 0:04:09.4]}
16... Rxb5 {[%clk 0:04:38.4]} 17. e5 {[%clk 0:04:04.5]} 17... Nd5 {[%clk
0:04:35.9]} 18. exd6 {[%clk 0:04:00.9]} 18... Qxd6 {[%clk 0:04:34.5]} 19. h3
{[%clk 0:03:58.4]} 19... Rfb8 {[%clk 0:04:32.7]} 20. Rab1 {[%clk 0:03:55.9]}
20... Qf6 {[%clk 0:04:30.8]} 21. Nh2 {[%clk 0:03:52.5]} 21... Nc3 {[%clk
0:04:28.3]} 22. Ng4 {[%clk 0:03:50]} 22... Qd4 {[%clk 0:04:24.5]} 23. Qh6+
{[%clk 0:03:46.7]} 23... Kg8 {[%clk 0:04:22.4]} 24. Rbe1 {[%clk 0:03:43.2]}
24... Rxb2 {[%clk 0:04:16.6]} 25. Rxe7 {[%clk 0:03:33.4]} 25... Ne2+ {[%clk
0:04:13.9]} 26. Kh1 {[%clk 0:03:29.5]} 26... Qf4 {[%clk 0:04:12.4]} 27. Qh4
{[%clk 0:02:34.5]} 27... Kg7 {[%clk 0:03:56.3]} 28. g3 {[%clk 0:02:25.5]} 28...
Qf3+ {[%clk 0:03:51.1]} 29. Kh2 {[%clk 0:02:16.9]} 29... h5 {[%clk 0:03:46.9]}
30. Ne5 {[%clk 0:02:09]} 30... Qf5 {[%clk 0:03:17.4]} 31. Rxf7+ {[%clk
0:02:04.4]} 31... Qxf7 {[%clk 0:03:16.5]} 32. Nxf7 {[%clk 0:02:02.7]} 32... Kxf7
{[%clk 0:03:16.4]} 33. Qc4+ {[%clk 0:01:59.4]} 33... Kg7 {[%clk 0:03:12.9]} 34.
Qxc5 {[%clk 0:01:56.6]} 34... R8b5 {[%clk 0:02:57.3]} 35. Qe7+ {[%clk
0:01:53.5]} 35... Kh6 {[%clk 0:02:56]} 36. Re1 {[%clk 0:01:47.4]} 36... Nxg3
{[%clk 0:02:33.1]} 37. Qe3+ {[%clk 0:01:38.9]} 37... Rg5 {[%clk 0:02:29.3]} 38.
h4 {[%clk 0:01:33.8]} 38... Rxf2+ {[%clk 0:02:18.5]} 39. Qxf2 {[%clk 0:01:26.2]}
39... Rg4 {[%clk 0:02:16.9]} 40. Qe3+ {[%clk 0:01:22.7]} 40... Kh7 {[%clk
0:02:13.2]} 41. Qe7+ {[%clk 0:01:17.1]} 41... Kh6 {[%clk 0:02:11.9]} 42. Qf8+
{[%clk 0:01:15.1]} 42... Kh7 {[%clk 0:02:09.3]} 43. Re7# {[%clk 0:01:13.8]} 1-0

[Event "Live Chess"]
[Site "Chess.com"]
[Date "2023.05.20"]
[Round "-"]
[White "MaximKris"]
[Black "CeladonFish"]
[Result "1-0"]
[WhiteElo "1880"]
[BlackElo "1091"]
[TimeControl "300"]
[EndTime "11:56:20 PDT"]
[Termination "MaximKris won by checkmate"]

1. e4 {[%clk 0:04:59.4]} 1... d6 {[%clk 0:04:59.3]} 2. Nf3 {[%clk 0:04:58.9]}
2... Nf6 {[%clk 0:04:59.2]} 3. Nc3 {[%clk 0:04:58.4]} 3... g6 {[%clk 0:04:58.9]}
4. d4 {[%clk 0:04:58]} 4... Bg7 {[%clk 0:04:58.6]} 5. Bg5 {[%clk 0:04:57.6]}
5... O-O {[%clk 0:04:58.3]} 6. Bc4 {[%clk 0:04:57.1]} 6... c6 {[%clk 0:04:57]}
7. h4 {[%clk 0:04:56.7]} 7... Nxe4 {[%clk 0:04:55.1]} 8. Nxe4 {[%clk 0:04:55.2]}
8... d5 {[%clk 0:04:54.7]} 9. Bd3 {[%clk 0:04:54.8]} 9... dxe4 {[%clk 0:04:54]}
10. Bxe4 {[%clk 0:04:54.7]} 10... Na6 {[%clk 0:04:49.5]} 11. h5 {[%clk
0:04:53.9]} 11... f5 {[%clk 0:04:45.4]} 12. hxg6 {[%clk 0:04:52.8]} 12... hxg6
{[%clk 0:04:44.4]} 13. Bd3 {[%clk 0:04:51.2]} 13... Re8 {[%clk 0:04:39.3]} 14.
Bc4+ {[%clk 0:04:50.4]} 14... Kf8 {[%clk 0:04:37.8]} 15. Ne5 {[%clk 0:04:46.5]}
15... Bxe5 {[%clk 0:04:36.5]} 16. dxe5 {[%clk 0:04:44.1]} 16... b5 {[%clk
0:04:32.9]} 17. Bh6# {[%clk 0:04:42.7]} 1-0

[Event "Live Chess"]
[Site "Chess.com"]
[Date "2023.05.20"]
[Round "-"]
[White "lightningorderyt"]
[Black "Duke_of_Bebington"]
[Result "0-1"]
[WhiteElo "529"]
[BlackElo "1561"]
[TimeControl "300"]
[EndTime "11:56:28 PDT"]
[Termination "Duke_of_Bebington won by resignation"]

1. d4 {[%clk 0:04:56.4]} 1... d5 {[%clk 0:04:57.8]} 2. c4 {[%clk 0:04:55.2]}
2... c6 {[%clk 0:04:55.1]} 3. Nc3 {[%clk 0:04:53.4]} 3... e5 {[%clk 0:04:52.2]}
4. e3 {[%clk 0:04:44.9]} 4... exd4 {[%clk 0:04:39.7]} 5. exd4 {[%clk 0:04:42.4]}
5... Be6 {[%clk 0:04:38.2]} 6. b3 {[%clk 0:04:40.4]} 6... g6 {[%clk 0:04:32.9]}
7. Bb2 {[%clk 0:04:38.5]} 7... Bg7 {[%clk 0:04:31.8]} 8. Nf3 {[%clk 0:04:35.6]}
8... Nd7 {[%clk 0:04:28.8]} 9. Bd3 {[%clk 0:04:27.3]} 9... Ne7 {[%clk
0:04:25.6]} 10. O-O {[%clk 0:04:26]} 10... O-O {[%clk 0:04:22.7]} 11. Ng5 {[%clk
0:04:11.6]} 11... Bf5 {[%clk 0:04:14.5]} 12. Bxf5 {[%clk 0:03:59]} 12... Nxf5
{[%clk 0:04:14.4]} 13. cxd5 {[%clk 0:03:50.1]} 13... Qxg5 {[%clk 0:04:09.3]} 14.
dxc6 {[%clk 0:03:45.5]} 14... bxc6 {[%clk 0:04:08.6]} 15. d5 {[%clk 0:03:34.2]}
15... cxd5 {[%clk 0:03:59.7]} 16. Qxd5 {[%clk 0:03:29.9]} 16... Rfd8 {[%clk
0:03:46.9]} 17. Ne4 {[%clk 0:03:22.6]} 17... Qh6 {[%clk 0:03:39.5]} 18. Bxg7
{[%clk 0:03:19.1]} 18... Qxg7 {[%clk 0:03:37.5]} 19. f4 {[%clk 0:02:58.8]} 19...
Nb6 {[%clk 0:03:29.3]} 20. Qc5 {[%clk 0:02:35.2]} 20... Rac8 {[%clk 0:03:06.8]}
21. Qa3 {[%clk 0:02:26.1]} 21... Qd4+ {[%clk 0:03:02]} 22. Nf2 {[%clk
0:02:23.9]} 22... Rc2 {[%clk 0:02:53]} 23. Rad1 {[%clk 0:02:10.9]} 23... Rd2
{[%clk 0:02:36.3]} 24. Rxd2 {[%clk 0:01:57.6]} 24... Qxd2 {[%clk 0:02:36.2]} 25.
Ne4 {[%clk 0:01:53.1]} 25... Qe3+ {[%clk 0:02:29.1]} 26. Nf2 {[%clk 0:01:49.4]}
26... Nd5 {[%clk 0:02:09.2]} 27. Qxa7 {[%clk 0:01:45.2]} 27... Qxa7 {[%clk
0:02:05.9]} 0-1

[Event "Live Chess"]
[Site "Chess.com"]
[Date "2023.05.20"]
[Round "-"]
[White "Ninifu"]
[Black "EdenHazard8"]
[Result "1-0"]
[WhiteElo "1999"]
[BlackElo "2082"]
[TimeControl "300"]
[EndTime "11:56:29 PDT"]
[Termination "Ninifu won by checkmate"]

1. d4 {[%clk 0:04:54.5]} 1... c6 {[%clk 0:04:59.9]} 2. c4 {[%clk 0:04:51.9]}
2... d5 {[%clk 0:04:59.3]} 3. Nf3 {[%clk 0:04:49.4]} 3... Nf6 {[%clk 0:04:58.3]}
4. Nc3 {[%clk 0:04:48.7]} 4... Bf5 {[%clk 0:04:56.5]} 5. e3 {[%clk 0:04:29.3]}
5... e6 {[%clk 0:04:54.7]} 6. Qb3 {[%clk 0:04:27.9]} 6... Qb6 {[%clk 0:04:52.9]}
7. c5 {[%clk 0:04:11.7]} 7... Qc7 {[%clk 0:04:48.9]} 8. Be2 {[%clk 0:04:02.3]}
8... Nbd7 {[%clk 0:04:47]} 9. O-O {[%clk 0:04:00.9]} 9... e5 {[%clk 0:04:44.5]}
10. Nxe5 {[%clk 0:03:49.7]} 10... Nxe5 {[%clk 0:04:41.7]} 11. dxe5 {[%clk
0:03:48.6]} 11... Nd7 {[%clk 0:04:38.7]} 12. f4 {[%clk 0:03:41.4]} 12... Bxc5
{[%clk 0:04:35.3]} 13. Kh1 {[%clk 0:03:37.4]} 13... O-O {[%clk 0:04:31.2]} 14.
Bd2 {[%clk 0:03:34.2]} 14... Bb6 {[%clk 0:04:29.5]} 15. Rac1 {[%clk 0:03:32.1]}
15... Nc5 {[%clk 0:04:27.6]} 16. Qd1 {[%clk 0:03:05.1]} 16... Ne4 {[%clk
0:04:24.8]} 17. Nxd5 {[%clk 0:02:55.7]} 17... Qd7 {[%clk 0:04:20]} 18. Nxb6
{[%clk 0:02:24.6]} 18... axb6 {[%clk 0:04:19.9]} 19. Bc3 {[%clk 0:02:19.7]}
19... Qxd1 {[%clk 0:04:14.5]} 20. Rcxd1 {[%clk 0:02:17.5]} 20... Rfd8 {[%clk
0:04:12]} 21. Kg1 {[%clk 0:01:54.4]} 21... Nxc3 {[%clk 0:04:06.5]} 22. bxc3
{[%clk 0:01:51.6]} 22... h6 {[%clk 0:04:03.9]} 23. Rxd8+ {[%clk 0:01:48.6]}
23... Rxd8 {[%clk 0:04:03.8]} 24. Rd1 {[%clk 0:01:45.2]} 24... Ra8 {[%clk
0:04:00.8]} 25. Bc4 {[%clk 0:01:43.8]} 25... b5 {[%clk 0:03:58.3]} 26. Bb3
{[%clk 0:01:41.7]} 26... c5 {[%clk 0:03:57.2]} 27. c4 {[%clk 0:01:38.8]} 27...
bxc4 {[%clk 0:03:55.6]} 28. Bxc4 {[%clk 0:01:35.5]} 28... Rb8 {[%clk 0:03:50.8]}
29. a4 {[%clk 0:01:26.4]} 29... Bc2 {[%clk 0:03:48.1]} 30. Rd7 {[%clk
0:01:21.3]} 30... Bxa4 {[%clk 0:03:41.3]} 31. Rxf7 {[%clk 0:01:20.4]} 31... Kh8
{[%clk 0:03:39.6]} 32. Bd5 {[%clk 0:01:08.5]} 32... b5 {[%clk 0:03:35.2]} 33. e6
{[%clk 0:00:51.1]} 33... b4 {[%clk 0:03:31.6]} 34. e7 {[%clk 0:00:48.8]} 34...
Re8 {[%clk 0:03:20]} 35. Rf8+ {[%clk 0:00:46.5]} 35... Kh7 {[%clk 0:03:18.1]}
36. Rxe8 {[%clk 0:00:21.7]} 36... Bxe8 {[%clk 0:03:15.4]} 37. f5 {[%clk
0:00:16.4]} 37... Ba4 {[%clk 0:03:14]} 38. Kf2 {[%clk 0:00:12.4]} 38... g6
{[%clk 0:03:12.1]} 39. f6 {[%clk 0:00:11]} 39... b3 {[%clk 0:03:07.3]} 40. Bxb3
{[%clk 0:00:09.7]} 40... Bxb3 {[%clk 0:03:02.8]} 41. e8=Q {[%clk 0:00:06.4]}
41... h5 {[%clk 0:03:02.3]} 42. h4 {[%clk 0:00:03.7]} 42... g5 {[%clk
0:02:58.4]} 43. Qe7+ {[%clk 0:00:02.8]} 43... Kh8 {[%clk 0:02:57.2]} 44. Qg7#
{[%clk 0:00:02.1]} 1-0

[Event "Live Chess"]
[Site "Chess.com"]
[Date "2023.05.20"]
[Round "-"]
[White "MJMykh"]
[Black "MarkLim1"]
[Result "0-1"]
[WhiteElo "1031"]
[BlackElo "1642"]
[TimeControl "300"]
[EndTime "11:56:32 PDT"]
[Termination "MarkLim1 won by resignation"]

1. e4 {[%clk 0:04:58.6]} 1... e6 {[%clk 0:04:58.8]} 2. Nf3 {[%clk 0:04:57.4]}
2... d5 {[%clk 0:04:58]} 3. exd5 {[%clk 0:04:55]} 3... exd5 {[%clk 0:04:57.2]}
4. Nc3 {[%clk 0:04:53.3]} 4... c6 {[%clk 0:04:55.8]} 5. Be2 {[%clk 0:04:51.7]}
5... Bd6 {[%clk 0:04:54.6]} 6. O-O {[%clk 0:04:50.6]} 6... Ne7 {[%clk
0:04:53.9]} 7. h3 {[%clk 0:04:49.8]} 7... Bf5 {[%clk 0:04:53]} 8. Bd3 {[%clk
0:04:48.9]} 8... Bxd3 {[%clk 0:04:51.8]} 9. cxd3 {[%clk 0:04:48.3]} 9... O-O
{[%clk 0:04:50.7]} 10. Re1 {[%clk 0:04:44.4]} 10... Na6 {[%clk 0:04:48.1]} 11.
Ne5 {[%clk 0:04:41.5]} 11... Ng6 {[%clk 0:04:44.7]} 12. Nxg6 {[%clk 0:04:38.6]}
12... hxg6 {[%clk 0:04:43.8]} 13. d4 {[%clk 0:04:33.6]} 13... Qf6 {[%clk
0:04:42.5]} 14. Ne2 {[%clk 0:04:27.7]} 14... Nb4 {[%clk 0:04:38.7]} 15. d3
{[%clk 0:04:23.8]} 15... Rfe8 {[%clk 0:04:33.4]} 16. a3 {[%clk 0:04:21.8]} 16...
Na6 {[%clk 0:04:28.9]} 17. Bd2 {[%clk 0:04:14.6]} 17... Re6 {[%clk 0:04:25.3]}
18. Bc3 {[%clk 0:04:05.2]} 18... Rae8 {[%clk 0:04:23.8]} 19. Qd2 {[%clk
0:03:53.3]} 19... Nc7 {[%clk 0:04:16.9]} 20. b4 {[%clk 0:03:41.1]} 20... Nb5
{[%clk 0:04:15.7]} 21. Rac1 {[%clk 0:03:37.3]} 21... Nxc3 {[%clk 0:04:11.4]} 22.
Rxc3 {[%clk 0:03:34.1]} 22... Bf4 {[%clk 0:03:56.5]} 23. Qb2 {[%clk 0:03:15.6]}
23... Qg5 {[%clk 0:03:51.3]} 24. Kf1 {[%clk 0:03:05]} 24... Bd2 {[%clk
0:03:49.5]} 25. f4 {[%clk 0:02:57.6]} 25... Bxf4 {[%clk 0:03:44.7]} 26. Qc2
{[%clk 0:02:41.3]} 26... Bg3 {[%clk 0:03:41]} 0-1

[Event "Live Chess"]
[Site "Chess.com"]
[Date "2023.05.20"]
[Round "-"]
[White "diana21strabt"]
[Black "xx_blindpuffin_xx"]
[Result "0-1"]
[WhiteElo "1687"]
[BlackElo "2203"]
[TimeControl "300"]
[EndTime "11:56:32 PDT"]
[Termination "xx_blindpuffin_xx won by resignation"]

1. e4 {[%clk 0:04:57.6]} 1... e6 {[%clk 0:04:58.5]} 2. d4 {[%clk 0:04:56.4]}
2... d5 {[%clk 0:04:58]} 3. Nc3 {[%clk 0:04:54.6]} 3... dxe4 {[%clk 0:04:55.6]}
4. Nxe4 {[%clk 0:04:48]} 4... Bd7 {[%clk 0:04:54.6]} 5. Nf3 {[%clk 0:04:46.1]}
5... Bc6 {[%clk 0:04:52.8]} 6. Bd3 {[%clk 0:04:40.6]} 6... Nf6 {[%clk
0:04:48.8]} 7. Bg5 {[%clk 0:04:36.9]} 7... Be7 {[%clk 0:04:47.5]} 8. Bxf6 {[%clk
0:04:35.9]} 8... Bxf6 {[%clk 0:04:47.4]} 9. Nxf6+ {[%clk 0:04:35]} 9... Qxf6
{[%clk 0:04:47.3]} 10. Be2 {[%clk 0:04:31.9]} 10... Nd7 {[%clk 0:04:45.4]} 11.
O-O {[%clk 0:04:30.7]} 11... O-O-O {[%clk 0:04:43]} 12. c3 {[%clk 0:04:24.3]}
12... g5 {[%clk 0:04:41.5]} 13. Nd2 {[%clk 0:04:17.1]} 13... e5 {[%clk
0:04:37.5]} 14. dxe5 {[%clk 0:04:04.4]} 14... Nxe5 {[%clk 0:04:34.3]} 15. Qc2
{[%clk 0:03:59.8]} 15... Qg6 {[%clk 0:04:28.9]} 16. Qxg6 {[%clk 0:03:58]} 16...
Nxg6 {[%clk 0:04:26.7]} 17. Nf3 {[%clk 0:03:55]} 17... Nf4 {[%clk 0:04:24.9]}
18. Bc4 {[%clk 0:03:43.7]} 18... f6 {[%clk 0:04:14.4]} 19. Nd4 {[%clk
0:03:34.1]} 19... Bxg2 {[%clk 0:04:10.7]} 20. Ne6 {[%clk 0:03:30.7]} 20... Bxf1
{[%clk 0:04:05.9]} 21. Nxd8 {[%clk 0:03:23.7]} 21... Bxc4 {[%clk 0:04:04.6]} 22.
Nf7 {[%clk 0:03:22.4]} 22... Bxf7 {[%clk 0:04:03.1]} 23. b3 {[%clk 0:03:20]}
23... Re8 {[%clk 0:03:56.9]} 24. Rd1 {[%clk 0:03:17.3]} 24... Bd5 {[%clk
0:03:55.2]} 25. c4 {[%clk 0:03:15.5]} 25... Bf3 {[%clk 0:03:54.1]} 26. Rc1
{[%clk 0:03:13.8]} 26... Ne2+ {[%clk 0:03:52.6]} 0-1

[Event "Live Chess"]
[Site "Chess.com"]
[Date "2023.05.20"]
[Round "-"]
[White "BigDom87"]
[Black "PLZ909"]
[Result "1-0"]
[WhiteElo "1378"]
[BlackElo "1286"]
[TimeControl "300"]
[EndTime "11:56:38 PDT"]
[Termination "BigDom87 won by resignation"]

1. d4 {[%clk 0:04:57.4]} 1... d5 {[%clk 0:04:59.9]} 2. c4 {[%clk 0:04:56]} 2...
c6 {[%clk 0:04:58.3]} 3. Nc3 {[%clk 0:04:54]} 3... e6 {[%clk 0:04:52.5]} 4. Nf3
{[%clk 0:04:51.3]} 4... Bd6 {[%clk 0:04:49.1]} 5. g3 {[%clk 0:04:32.6]} 5... Nf6
{[%clk 0:04:45.5]} 6. Bg2 {[%clk 0:04:27.5]} 6... Nbd7 {[%clk 0:04:39.9]} 7. O-O
{[%clk 0:04:22.7]} 7... e5 {[%clk 0:04:28.6]} 8. dxe5 {[%clk 0:04:18.8]} 8...
Bxe5 {[%clk 0:04:27.7]} 9. Nxe5 {[%clk 0:04:13]} 9... Nxe5 {[%clk 0:04:27.6]}
10. cxd5 {[%clk 0:04:10.9]} 10... cxd5 {[%clk 0:04:23.9]} 11. Nxd5 {[%clk
0:04:07.6]} 11... Nxd5 {[%clk 0:04:14.1]} 12. Qxd5 {[%clk 0:04:01.9]} 12... Qxd5
{[%clk 0:04:13.2]} 13. Bxd5 {[%clk 0:04:00.1]} 13... O-O {[%clk 0:04:13.1]} 14.
Bf4 {[%clk 0:03:54.1]} 14... Rd8 {[%clk 0:03:59.7]} 15. Be4 {[%clk 0:03:35.3]}
15... Nc4 {[%clk 0:03:53.3]} 16. b3 {[%clk 0:03:26]} 16... Nd2 {[%clk
0:03:48.2]} 17. Rfd1 {[%clk 0:03:19.1]} 17... g5 {[%clk 0:02:58.7]} 18. Bxd2
{[%clk 0:03:16.8]} 18... Rb8 {[%clk 0:02:55.1]} 19. Bxg5 {[%clk 0:03:12.5]}
19... Rxd1+ {[%clk 0:02:55]} 20. Rxd1 {[%clk 0:03:09.6]} 20... b6 {[%clk
0:02:54.1]} 21. Bf4 {[%clk 0:03:06.3]} 21... Bb7 {[%clk 0:02:49.3]} 22. Bxb8
{[%clk 0:02:58.6]} 1-0

[Event "Live Chess"]
[Site "Chess.com"]
[Date "2023.05.20"]
[Round "-"]
[White "TobyQuaite"]
[Black "OleksiyJr1"]
[Result "1/2-1/2"]
[WhiteElo "1686"]
[BlackElo "938"]
[TimeControl "300"]
[EndTime "11:56:39 PDT"]
[Termination "Game drawn - insufficient material"]

1. e4 {[%clk 0:04:55.7]} 1... c5 {[%clk 0:04:57.6]} 2. Nf3 {[%clk 0:04:53.5]}
2... Nc6 {[%clk 0:04:50]} 3. Bb5 {[%clk 0:04:51.5]} 3... d6 {[%clk 0:04:49]} 4.
d4 {[%clk 0:04:48.9]} 4... Bd7 {[%clk 0:04:44.2]} 5. O-O {[%clk 0:04:42.6]} 5...
cxd4 {[%clk 0:04:42.5]} 6. Nxd4 {[%clk 0:04:42.1]} 6... Nxd4 {[%clk 0:04:41.3]}
7. Bxd7+ {[%clk 0:04:42]} 7... Qxd7 {[%clk 0:04:40.5]} 8. Qxd4 {[%clk
0:04:41.5]} 8... Nf6 {[%clk 0:04:39.2]} 9. Nc3 {[%clk 0:04:38.4]} 9... e5 {[%clk
0:04:38]} 10. Qd1 {[%clk 0:04:35.6]} 10... Rd8 {[%clk 0:04:34.5]} 11. Bg5 {[%clk
0:04:32.8]} 11... Be7 {[%clk 0:04:31.2]} 12. Bxf6 {[%clk 0:04:21.5]} 12... Bxf6
{[%clk 0:04:29.5]} 13. Nd5 {[%clk 0:04:21.4]} 13... Qe6 {[%clk 0:04:17.5]} 14.
c4 {[%clk 0:04:16]} 14... O-O {[%clk 0:04:15.7]} 15. Rc1 {[%clk 0:04:10.4]}
15... Rc8 {[%clk 0:04:12]} 16. Re1 {[%clk 0:04:04.6]} 16... Bg5 {[%clk
0:04:08.9]} 17. Rc3 {[%clk 0:03:56.3]} 17... Bf4 {[%clk 0:03:56.1]} 18. Nxf4
{[%clk 0:03:54.3]} 18... exf4 {[%clk 0:03:54.8]} 19. b3 {[%clk 0:03:49.5]} 19...
b5 {[%clk 0:03:49.5]} 20. Qd3 {[%clk 0:03:26.1]} 20... bxc4 {[%clk 0:03:42.9]}
21. Rxc4 {[%clk 0:03:24.7]} 21... Rxc4 {[%clk 0:03:40.7]} 22. bxc4 {[%clk
0:03:22.3]} 22... f5 {[%clk 0:03:36.7]} 23. Qd5 {[%clk 0:03:13.3]} 23... Re8
{[%clk 0:03:19.6]} 24. Qxe6+ {[%clk 0:03:07.4]} 24... Rxe6 {[%clk 0:03:19.5]}
25. f3 {[%clk 0:03:04.7]} 25... fxe4 {[%clk 0:03:17.3]} 26. fxe4 {[%clk
0:03:04.6]} 26... Kf7 {[%clk 0:03:15.7]} 27. Kf2 {[%clk 0:03:03.9]} 27... g5
{[%clk 0:03:13.5]} 28. Kf3 {[%clk 0:03:03.1]} 28... Ke7 {[%clk 0:03:05.4]} 29.
Kg4 {[%clk 0:03:02.3]} 29... h6 {[%clk 0:03:03.6]} 30. h4 {[%clk 0:03:00.4]}
30... Re5 {[%clk 0:02:59.3]} 31. hxg5 {[%clk 0:02:58.5]} 31... hxg5 {[%clk
0:02:56.5]} 32. Rh1 {[%clk 0:02:56.7]} 32... Kd7 {[%clk 0:02:53.3]} 33. Kf3
{[%clk 0:02:51.1]} 33... Kc6 {[%clk 0:02:51.7]} 34. Rd1 {[%clk 0:02:47.9]} 34...
Kc5 {[%clk 0:02:43.3]} 35. Rd5+ {[%clk 0:02:39]} 35... Rxd5 {[%clk 0:02:40]} 36.
cxd5 {[%clk 0:02:38.9]} 36... Kd4 {[%clk 0:02:38.1]} 37. a4 {[%clk 0:02:27.6]}
37... a5 {[%clk 0:02:33.9]} 38. Kg4 {[%clk 0:02:21.1]} 38... Kxe4 {[%clk
0:02:33]} 39. Kxg5 {[%clk 0:02:20.7]} 39... Kxd5 {[%clk 0:02:29.4]} 40. Kxf4
{[%clk 0:02:19.9]} 40... Kc5 {[%clk 0:02:28.7]} 41. g4 {[%clk 0:02:18.8]} 41...
d5 {[%clk 0:02:28.1]} 42. g5 {[%clk 0:02:18]} 42... d4 {[%clk 0:02:27.5]} 43. g6
{[%clk 0:02:17.5]} 43... d3 {[%clk 0:02:26.9]} 44. g7 {[%clk 0:02:17.1]} 44...
d2 {[%clk 0:02:25.7]} 45. g8=Q {[%clk 0:02:14.5]} 45... d1=Q {[%clk 0:02:24.7]}
46. Qc8+ {[%clk 0:02:11]} 46... Kb4 {[%clk 0:02:22.6]} 47. Qf8+ {[%clk
0:01:50.5]} 47... Kxa4 {[%clk 0:02:05.6]} 48. Qe8+ {[%clk 0:01:49.6]} 48... Kb3
{[%clk 0:02:00.8]} 49. Qb5+ {[%clk 0:01:47.3]} 49... Kc2 {[%clk 0:01:55]} 50.
Qa4+ {[%clk 0:01:44.7]} 50... Kc1 {[%clk 0:01:49.8]} 51. Qa1+ {[%clk 0:01:43.5]}
51... Kc2 {[%clk 0:01:48.4]} 52. Qa2+ {[%clk 0:01:43]} 52... Kc1 {[%clk
0:01:46.8]} 53. Qa3+ {[%clk 0:01:38.6]} 53... Kc2 {[%clk 0:01:35.3]} 54. Qa4+
{[%clk 0:01:37.5]} 54... Kc1 {[%clk 0:01:33.2]} 55. Qxa5 {[%clk 0:01:37]} 55...
Qd2+ {[%clk 0:01:31.3]} 56. Qxd2+ {[%clk 0:01:35.8]} 56... Kxd2 {[%clk
0:01:31.2]} 1/2-1/2

[Event "Live Chess"]
[Site "Chess.com"]
[Date "2023.05.20"]
[Round "-"]
[White "wadsy27"]
[Black "onemoretime1975"]
[Result "1-0"]
[WhiteElo "2584"]
[BlackElo "1924"]
[TimeControl "300"]
[EndTime "11:56:48 PDT"]
[Termination "wadsy27 won by resignation"]

1. c4 {[%clk 0:04:57.7]} 1... e6 {[%clk 0:04:57.5]} 2. g3 {[%clk 0:04:56.4]}
2... d5 {[%clk 0:04:55.8]} 3. Bg2 {[%clk 0:04:55.6]} 3... c6 {[%clk 0:04:54.5]}
4. Nf3 {[%clk 0:04:54.6]} 4... Nf6 {[%clk 0:04:52.7]} 5. b3 {[%clk 0:04:51.6]}
5... g6 {[%clk 0:04:48.5]} 6. Bb2 {[%clk 0:04:50.7]} 6... Bg7 {[%clk 0:04:47.6]}
7. O-O {[%clk 0:04:50.3]} 7... O-O {[%clk 0:04:46.3]} 8. d4 {[%clk 0:04:50]}
8... Nbd7 {[%clk 0:04:41.1]} 9. Nc3 {[%clk 0:04:48.2]} 9... b6 {[%clk
0:04:31.6]} 10. Nd2 {[%clk 0:04:33]} 10... Bb7 {[%clk 0:04:28.9]} 11. e4 {[%clk
0:04:28.7]} 11... dxe4 {[%clk 0:04:27]} 12. Ndxe4 {[%clk 0:04:28.6]} 12... Nxe4
{[%clk 0:04:25.4]} 13. Nxe4 {[%clk 0:04:28.5]} 13... Nf6 {[%clk 0:04:23.5]} 14.
Ba3 {[%clk 0:04:22.4]} 14... Re8 {[%clk 0:04:15.2]} 15. Nd6 {[%clk 0:04:20.8]}
15... Re7 {[%clk 0:04:14.2]} 16. Nxb7 {[%clk 0:04:20.1]} 16... Rxb7 {[%clk
0:04:12.3]} 17. Bxc6 {[%clk 0:04:19.6]} 1-0